bitfinex-derivatives/quotes_SOLF0:USTF0_20260218
["timestamp","ask_amount","ask_price","bid_price","bid_amount"]
[1771388797394,3.66437864,85.279,85.244,3.58051944]
[1771388805098,8.55666054,85.31,85.261,3.62767309]
[1771388805099,3.94391535,85.291,85.261,3.62767309]
[1771388805395,1.98115744,85.31,85.26,1.98115744]
[1771388805396,3.94391535,85.309,85.263,3.62767309]
[1771388805602,3.94391535,85.309,85.265,3.62767309]
[1771388806398,3.94391535,85.309,85.266,3.62767309]
[1771388808200,3.94391535,85.307,85.266,3.62767309]
[1771388808399,3.94391535,85.299,85.266,3.62767309]
[1771388808807,3.94391535,85.299,85.265,85.66]
[1771388811408,3.94391535,85.299,85.258,3.62767309]
[1771388814311,3.67420034,85.309,85.261,3.92032203]
[1771388816709,14.23020034,85.307,85.261,3.92032203]
[1771388817410,3.67420034,85.306,85.261,3.92032203]
[1771388817906,3.67420034,85.306,85.271,3.92032203]
[1771388818207,3.67420034,85.317,85.271,3.92032203]
[1771388819713,10.555,85.314,85.271,3.92032203]
[1771388819910,14.22920034,85.314,85.271,3.92032203]
[1771388820411,3.67420034,85.313,85.271,3.92032203]
[1771388821719,10.5533,85.328,85.281,3.92032203]
[1771388823015,10.5533,85.328,85.29,1.98115744]
[1771388823213,10.5533,85.328,85.291,3.92032203]
[1771388823409,3.67420034,85.334,85.291,3.92032203]
[1771388824719,3.67420034,85.309,85.262,3.92032203]
[1771388826817,3.67420034,85.299,85.252,86.32]
[1771388827520,3.67420034,85.299,85.25,3.92032203]
[1771388828422,3.67420034,85.299,85.251,3.92032203]
[1771388828725,3.67420034,85.318,85.271,3.92032203]
[1771388839829,3.58427721,85.309,85.271,3.92032203]
[1771388850241,1.98115744,85.3,85.271,3.92032203]
[1771388853344,3.58427721,85.307,85.271,3.92032203]
[1771388854434,73.86,85.306,85.271,3.92032203]
[1771388855646,77.44427721,85.306,85.271,3.92032203]
[1771388855843,3.58427721,85.305,85.271,3.92032203]
[1771388860746,3.58427721,85.303,85.271,3.92032203]
[1771388865550,1.98015541,85.3,85.271,3.92032203]
[1771388869149,3.58427721,85.303,85.271,3.92032203]
[1771388870660,10.5549,85.315,85.271,3.92032203]
[1771388870661,1.98015541,85.32,85.271,3.92032203]
[1771388870854,73.86,85.319,85.271,3.92032203]
[1771388871162,3.71034648,85.318,85.271,3.92032203]
[1771388875466,1.98015541,85.31,85.271,3.92032203]
[1771388878562,1.98015541,85.31,85.242,29.12782305]
[1771388878563,3.71034648,85.318,85.274,3.57566166]
[1771388878762,73.86,85.317,85.275,3.57566166]
[1771388879165,77.69058443,85.317,85.275,3.57566166]
[1771388879370,3.83058443,85.316,85.275,3.57566166]
[1771388879669,3.83058443,85.309,85.275,3.57566166]
[1771388879967,3.83058443,85.299,85.265,3.57566166]
[1771388883068,3.83058443,85.299,85.25,21.84586728]
[1771388883274,1.98015541,85.27,85.239,3.57566166]
[1771388883465,1.98015541,85.28,85.239,3.57566166]
[1771388885866,73.86,85.283,85.24,1.98015541]
[1771388886071,73.86,85.283,85.241,3.57566166]
[1771388886374,3.83058443,85.282,85.241,3.57566166]
[1771388886774,1.98015541,85.28,85.241,3.57566166]
[1771388887071,3.83058443,85.279,85.241,3.57566166]
[1771388889065,1.98015541,85.27,85.241,3.57566166]
[1771388890778,73.86,85.28,85.241,3.57566166]
[1771388891174,1.98015541,85.29,85.241,3.57566166]
[1771388891375,73.86,85.285,85.241,3.57566166]
[1771388892572,3.83058443,85.284,85.241,3.57566166]
[1771388892778,1.98015541,85.28,85.241,3.57566166]
[1771388898976,10.96743999,85.329,85.241,3.57566166]
[1771388898977,1.98015541,85.29,85.241,3.57566166]
[1771388899179,73.86,85.283,85.241,3.57566166]
[1771388902082,73.86,85.292,85.251,3.583452]
[1771388902282,73.86,85.293,85.251,3.583452]
[1771388902487,3.82398071,85.307,85.261,3.583452]
[1771388902687,73.86,85.306,85.261,3.583452]
[1771388903587,3.82398071,85.305,85.261,3.583452]
[1771388903790,1.98015541,85.3,85.261,3.583452]
[1771388903986,5.80413612,85.3,85.261,3.583452]
[1771388910492,1.98015541,85.29,85.261,3.583452]
[1771388911391,3.82398071,85.299,85.261,3.583452]
[1771388924993,73.86,85.305,85.271,3.70186604]
[1771388925193,1.98021348,85.32,85.271,3.70186604]
[1771388925399,73.86,85.317,85.271,3.70186604]
[1771388925599,77.64196715,85.317,85.271,3.70186604]
[1771388926797,3.78196715,85.316,85.271,3.70186604]
[1771388929905,1.98021348,85.31,85.271,3.70186604]
[1771388932302,1.98021348,85.31,85.275,3.70186604]
[1771388932704,3.78196715,85.316,85.275,3.70186604]
[1771388933099,3.78196715,85.316,85.277,3.70186604]
[1771388934706,3.78196715,85.316,85.278,10.5594]
[1771388936000,3.78196715,85.316,85.278,14.2638243]
[1771388938907,3.78196715,85.316,85.27,3.7044243]
[1771388939105,3.90520382,85.309,85.27,3.7044243]
[1771388940112,3.90520382,85.309,85.261,21.84586728]
[1771388940113,3.90520382,85.299,85.261,3.7044243]
[1771388941802,1.98021348,85.29,85.261,3.7044243]
[1771388942411,3.90520382,85.299,85.261,3.7044243]
[1771388945511,73.86,85.308,85.261,3.7044243]
[1771388945712,73.86,85.308,85.265,3.7044243]
[1771388946011,77.76520382,85.308,85.265,3.7044243]
[1771388946204,3.90520382,85.299,85.265,3.7044243]
[1771388973944,3.72972393,85.289,85.253,21.84586728]
[1771388974138,3.72972393,85.289,85.249,3.73084492]
[1771388981346,3.72972393,85.298,85.252,3.73084492]
[1771388981552,3.72972393,85.298,85.256,3.73084492]
[1771389003173,3.72972393,85.298,85.26,3.81764738]
[1771389014776,3.5890902,85.289,85.253,21.84586728]
[1771389015779,3.5890902,85.289,85.248,21.84586728]
[1771389017280,3.5890902,85.289,85.248,25.68002822]
[1771389017485,3.5890902,85.289,85.249,3.83416094]
[1771389018086,3.5890902,85.279,85.249,3.83416094]
[1771389022287,3.5890902,85.259,85.226,21.84586728]
[1771389022490,199.3725,85.324,85.182,35.55169243]
[1771389022491,3.5890902,85.239,85.182,3.83416094]
[1771389022692,1.98070327,85.23,85.182,3.83416094]
[1771389022886,1.98070327,85.24,85.191,3.83416094]
[1771389024591,5.56979347,85.24,85.191,3.83416094]
[1771389025992,5.56979347,85.24,85.191,3.63089891]
[1771389028395,3.5890902,85.239,85.191,3.63089891]
[1771389030603,1.98070327,85.23,85.191,3.63089891]
[1771389031592,1.98070327,85.25,85.201,3.83416094]
[1771389031790,5.56979347,85.26,85.211,3.83416094]
[1771389032502,3.5890902,85.259,85.211,3.83416094]
[1771389032896,1.98070327,85.25,85.211,3.83416094]
[1771389033101,3.5890902,85.239,85.196,3.83416094]
[1771389034296,5.56979347,85.25,85.201,3.83416094]
[1771389034499,3.5890902,85.249,85.201,3.83416094]
[1771389036903,3.5890902,85.259,85.211,3.83416094]
[1771389037105,1.98256757,85.26,85.211,3.83416094]
[1771389037798,1.98256757,85.26,85.214,3.83416094]
[1771389037999,3.5890902,85.269,85.214,3.83416094]
[1771389039603,3.5890902,85.279,85.231,3.83416094]
[1771389040604,1.98256757,85.28,85.231,3.83416094]
[1771389040605,5.57165777,85.27,85.231,3.83416094]
[1771389043508,3.5890902,85.27,85.231,3.83416094]
[1771389046812,3.8558965,85.269,85.231,3.83416094]
[1771389063516,1.98256757,85.29,85.241,3.80854737]
[1771389063714,1.98256757,85.29,85.251,3.80854737]
[1771389064020,3.83063374,85.289,85.251,3.80854737]
[1771389065012,3.83063374,85.289,85.241,3.80854737]
[1771389066520,3.83063374,85.289,85.242,14.37234737]
[1771389066721,3.83063374,85.289,85.243,3.80854737]
[1771389068921,3.83063374,85.279,85.233,3.80854737]
[1771389069134,3.83063374,85.269,85.233,3.80854737]
[1771389080037,3.71681405,85.259,85.223,3.88584403]
[1771389084445,3.71681405,85.259,85.212,3.88584403]
[1771389086946,3.71681405,85.269,85.221,3.88584403]
[1771389087443,3.71681405,85.269,85.231,3.88584403]
[1771389096051,10.98006918,85.312,85.222,21.79172831]
[1771389096052,3.71681405,85.293,85.234,3.88584403]
[1771389096250,1.98256757,85.3,85.251,3.88584403]
[1771389096758,5.69938162,85.3,85.251,3.88584403]
[1771389097057,5.69938162,85.31,85.261,3.88584403]
[1771389097263,3.71681405,85.309,85.261,3.88584403]
[1771389099361,3.71681405,85.299,85.261,3.88584403]
[1771389101258,10.5549,85.315,85.244,82.86]
[1771389101259,3.71681405,85.289,85.247,3.88584403]
[1771389102160,3.71681405,85.289,85.251,3.88584403]
[1771389107061,1.97973939,85.28,85.237,83.54]
[1771389107262,3.7004866,85.269,85.233,3.91668854]
[1771389115071,3.93077922,85.279,85.233,3.91668854]
[1771389115268,3.93077922,85.319,85.261,3.60086224]
[1771389115472,3.93077922,85.319,85.263,3.60086224]
[1771389115872,3.93077922,85.319,85.265,3.60086224]
[1771389116567,3.93077922,85.309,85.267,3.60086224]
[1771389117268,5.91051861,85.32,85.271,3.60086224]
[1771389117464,3.93077922,85.319,85.271,3.60086224]
[1771389117663,3.93077922,85.319,85.273,3.60086224]
[1771389118372,3.93077922,85.319,85.281,3.60086224]
[1771389119476,3.93077922,85.33,85.281,3.60086224]
[1771389119775,3.93077922,85.33,85.283,3.60086224]
[1771389120374,3.93077922,85.329,85.283,3.60086224]
[1771389120566,3.93077922,85.329,85.239,11.73]
[1771389120567,5.91051861,85.34,85.294,3.60086224]
[1771389120773,3.93077922,85.339,85.294,3.60086224]
[1771389121566,3.93077922,85.339,85.3,1.97973939]
[1771389121972,3.93077922,85.339,85.3,5.58060163]
[1771389124478,1.97973939,85.35,85.293,84.16]
[1771389124479,1.97973939,85.35,85.305,3.60086224]
[1771389124681,3.93077922,85.35,85.305,3.60086224]
[1771389125781,3.93077922,85.35,85.304,76.0]
[1771389125782,3.93077922,85.35,85.307,3.60086224]
[1771389129681,3.93077922,85.349,85.307,3.60086224]
[1771389129883,3.93077922,85.349,85.306,10.556]
[1771389138087,3.93077922,85.349,85.309,10.5555]
[1771389138289,3.93077922,85.349,85.309,14.47949869]
[1771389139493,3.93077922,85.349,85.314,3.92399869]
[1771389140688,3.93077922,85.349,85.315,10.5549]
[1771389142590,3.93077922,85.349,85.316,3.92399869]
[1771389142991,3.8117041,85.339,85.3,10.5567]
[1771389147599,3.8117041,85.339,85.3,14.48069869]
[1771389154502,3.8117041,85.339,85.302,10.5565]
[1771389156797,3.8117041,85.339,85.302,14.48049869]
[1771389158609,3.8117041,85.339,85.303,3.92399869]
[1771389162919,3.8117041,85.319,85.277,3.92399869]
[1771389164412,3.8117041,85.319,85.269,85.86]
[1771389164612,3.8117041,85.319,85.221,21.1331]
[1771389164613,1.97839513,85.32,85.27,1.97839513]
[1771389164812,3.69757635,85.32,85.281,3.61386298]
[1771389165019,3.69757635,85.32,85.291,3.61386298]
[1771389165318,1.97839513,85.34,85.291,3.61386298]
[1771389165319,3.69757635,85.335,85.291,3.61386298]
[1771389169625,3.69757635,85.335,85.293,3.61386298]
[1771389170724,3.69757635,85.335,85.296,3.61386298]
[1771389172819,3.69757635,85.335,85.298,3.61386298]
[1771389178625,3.69757635,85.335,85.3,3.79997515]
[1771389179826,3.69757635,85.335,85.304,10.5562]
[1771389180821,3.69757635,85.335,85.304,14.35617515]
[1771389181527,3.69757635,85.335,85.305,3.79997515]
[1771389183435,3.69757635,85.335,85.306,14.35587515]
[1771389183830,3.69757635,85.335,85.307,3.79997515]
[1771389184030,3.58486064,85.366,85.313,3.79997515]
[1771389184227,3.58486064,85.366,85.321,3.79997515]
[1771389184432,3.58486064,85.366,85.274,29.1238596]
[1771389184433,3.58486064,85.366,85.331,3.79997515]
[1771389185321,3.58486064,85.377,85.342,10.5515]
[1771389185627,3.58486064,85.377,85.342,14.35147515]
[1771389186725,3.58486064,85.377,85.33,1.97839513]
[1771389186726,3.58486064,85.377,85.345,10.5511]
[1771389188223,3.58486064,85.369,85.328,3.79997515]
[1771389188532,3.58486064,85.369,85.278,35.2]
[1771389188533,3.58486064,85.359,85.311,3.79997515]
[1771389189425,3.58486064,85.349,85.315,10.5548]
[1771389191628,1.97839513,85.39,85.34,1.97839513]
[1771389191930,1.97839513,85.39,85.336,3.79997515]
[1771389192135,1.97839513,85.38,85.336,3.79997515]
[1771389192727,1.97839513,85.38,85.341,10.5516]
[1771389197239,5.78215451,85.38,85.341,10.5516]
[1771389198227,3.80375938,85.379,85.341,10.5516]
[1771389198429,3.80375938,85.369,85.329,3.91782469]
[1771389200733,3.80375938,85.369,85.331,3.91782469]
[1771389213951,3.80375938,85.369,85.333,3.91782469]
[1771389214849,3.80375938,85.369,85.337,10.5521]
[1771389215050,3.80375938,85.369,85.337,14.46992469]
[1771389215441,3.80375938,85.369,85.337,3.91782469]
[1771389221255,1.97707561,85.36,85.337,3.91782469]
[1771389221954,3.80375938,85.369,85.337,3.91782469]
[1771389224160,1.97707561,85.36,85.329,10.5531]
[1771389225357,3.80375938,85.369,85.329,10.5531]
[1771389225557,3.80375938,85.369,85.33,3.82077474]
[1771389234573,3.71757875,85.359,85.33,3.82077474]
[1771389234776,3.71757875,85.359,85.314,3.96271734]
[1771389238583,1.97707561,85.34,85.314,3.96271734]
[1771389238771,3.71757875,85.339,85.297,3.96271734]
[1771389241679,1.97707561,85.33,85.297,3.96271734]
[1771389242478,3.71757875,85.339,85.297,3.96271734]
[1771389252992,3.71757875,85.339,85.301,3.96271734]
[1771389256697,1.97707561,85.35,85.303,3.90841748]
[1771389256900,3.59291688,85.352,85.303,3.90841748]
[1771389258696,3.59291688,85.352,85.311,3.90841748]
[1771389263104,3.59291688,85.381,85.341,3.90841748]
[1771389263298,1.97707561,85.35,85.308,3.90841748]
[1771389263505,3.59291688,85.349,85.308,3.90841748]
[1771389264811,3.59291688,85.349,85.311,3.90841748]
[1771389277411,3.59291688,85.349,85.313,3.90841748]
[1771389279827,3.59291688,85.339,85.302,3.90841748]
[1771389284027,3.59291688,85.339,85.294,10.5574]
[1771389284325,3.59291688,85.339,85.294,14.46581748]
[1771389284530,3.59291688,85.339,85.295,3.90841748]
[1771389285122,3.59291688,85.339,85.299,10.5568]
[1771389285426,3.67106325,85.329,85.287,84.8]
[1771389285625,5.6495489,85.32,85.287,84.8]
[1771389285822,3.67106325,85.319,85.288,10.5582]
[1771389286024,8.54759079,85.345,85.278,3.65747441]
[1771389286328,11.73,85.429,85.277,340.80284514]
[1771389286329,1.97848565,85.35,85.301,3.65747441]
[1771389286932,3.67106325,85.349,85.304,3.65747441]
[1771389287427,1.97848565,85.34,85.304,3.65747441]
[1771389287933,3.67106325,85.339,85.304,3.65747441]
[1771389298240,3.67106325,85.339,85.305,10.5561]
[1771389298435,3.67106325,85.339,85.306,3.90020899]
[1771389301435,3.67106325,85.339,85.295,3.90020899]
[1771389301840,3.67106325,85.339,85.299,3.90020899]
[1771389302842,3.67106325,85.339,85.301,10.5566]
[1771389304744,3.8381567,85.319,85.279,3.90020899]
[1771389306645,3.8381567,85.319,85.288,10.5582]
[1771389307141,3.8381567,85.319,85.289,3.90020899]
[1771389307347,1.97848565,85.33,85.296,10.5572]
[1771389308949,3.8381567,85.329,85.296,10.5572]
[1771389314454,3.8381567,85.329,85.297,3.90020899]
[1771389318861,3.8381567,85.329,85.296,10.5572]
[1771389320751,3.8381567,85.329,85.298,14.20935072]
[1771389325462,3.8381567,85.329,85.299,3.65235072]
[1771389351898,3.8381567,85.329,85.292,10.5576]
[1771389356798,3.8381567,85.329,85.29,3.77342021]
[1771389357801,1.97875265,85.32,85.29,3.77342021]
[1771389360502,3.8381567,85.329,85.29,3.77342021]
[1771389360702,3.65211441,85.299,85.267,21.80270705]
[1771389360905,3.65211441,85.289,85.257,3.58764141]
[1771389363606,1.97875265,85.28,85.249,93.44]
[1771389363812,3.65211441,85.269,85.233,14.15264141]
[1771389366007,3.65211441,85.269,85.234,3.58764141]
[1771389366413,1.97875265,85.26,85.234,3.58764141]
[1771389366712,5.63086706,85.26,85.224,3.58764141]
[1771389368317,5.63086706,85.26,85.225,14.15364141]
[1771389368513,3.65211441,85.26,85.226,3.58764141]
[1771389369817,3.65211441,85.26,85.227,10.5657]
[1771389370421,3.65211441,85.26,85.227,14.15334141]
[1771389370619,3.65211441,85.26,85.229,14.15304141]
[1771389370915,3.65211441,85.26,85.23,3.58764141]
[1771389371116,3.65211441,85.26,85.232,3.58764141]
[1771389374012,3.65211441,85.283,85.226,3.58764141]
[1771389374315,3.65211441,85.283,85.196,545.28455223]
[1771389374316,1.97875265,85.28,85.231,3.58764141]
[1771389374513,5.63086706,85.28,85.231,3.58764141]
[1771389374710,3.68973888,85.279,85.231,3.58764141]
[1771389375823,3.68973888,85.279,85.237,3.60053484]
[1771389376423,3.68973888,85.279,85.236,10.5646]
[1771389376424,3.68973888,85.269,85.227,14.16633484]
[1771389377521,1.97875265,85.26,85.227,14.16633484]
[1771389379116,3.68973888,85.259,85.227,3.60053484]
[1771389400340,3.68973888,85.249,85.216,3.60053484]
[1771389403241,3.68973888,85.239,85.201,3.60053484]
[1771389404940,3.59453258,85.229,85.201,3.60053484]
[1771389405944,3.59453258,85.229,85.196,545.28455223]
[1771389406143,3.59453258,85.229,85.192,3.96535953]
[1771389413147,10.5645,85.238,85.192,3.96535953]
[1771389413446,3.59453258,85.237,85.192,3.96535953]
[1771389422559,1.98207583,85.23,85.192,3.96535953]
[1771389422760,3.68351345,85.229,85.192,3.96535953]
[1771389428257,3.68351345,85.229,85.185,10.571]
[1771389428258,3.68351345,85.229,85.179,96.22]
[1771389428452,3.68351345,85.219,85.18,3.9472904]
[1771389428859,73.86,85.258,85.17,398.12265967]
[1771389428860,3.68351345,85.209,85.171,3.9472904]
[1771389429056,3.68351345,85.209,85.17,398.12265967]
[1771389429861,5.66558928,85.2,85.17,402.06995007]
[1771389430053,3.68351345,85.199,85.17,398.12265967]
[1771389430668,3.68351345,85.189,85.15,97.38]
[1771389430859,3.68351345,85.189,85.151,3.9472904]
[1771389431364,3.68351345,85.189,85.142,3.9472904]
[1771389431756,10.9900236,85.239,85.123,21.80270705]
[1771389431757,3.68351345,85.179,85.123,21.80270705]
[1771389431965,3.68351345,85.169,85.132,3.9472904]
[1771389432464,3.68351345,85.159,85.121,3.9472904]
[1771389432660,3.68351345,85.139,85.091,3.9472904]
[1771389432858,3.68351345,85.149,85.101,3.9472904]
[1771389433259,3.68351345,85.139,85.101,3.9472904]
[1771389433563,1.98207583,85.13,85.101,3.9472904]
[1771389433757,3.68351345,85.129,85.088,3.9472904]
[1771389434760,3.75700836,85.119,85.075,97.92]
[1771389434958,3.75700836,85.119,85.076,3.58716475]
[1771389443566,3.75700836,85.117,85.076,3.58716475]
[1771389444074,1.98207583,85.11,85.076,3.58716475]
[1771389444371,3.75700836,85.109,85.076,3.58716475]
[1771389445067,3.75700836,85.109,85.061,3.58716475]
[1771389445269,1.98207583,85.1,85.061,3.58716475]
[1771389445571,3.75700836,85.099,85.061,3.58716475]
[1771389446367,3.75700836,85.079,85.038,3.58716475]
[1771389446571,3.75700836,85.079,84.977,21.80270705]
[1771389446572,1.98207583,85.1,85.051,3.58716475]
[1771389446971,3.75700836,85.101,85.051,3.58716475]
[1771389447172,3.75700836,85.129,85.071,3.58716475]
[1771389447372,3.75700836,85.129,85.081,3.58716475]
[1771389447573,14.33540836,85.126,85.081,3.58716475]
[1771389447872,3.75700836,85.125,85.081,3.58716475]
[1771389448568,3.75700836,85.119,85.081,3.58716475]
[1771389449670,3.75700836,85.117,85.081,3.58716475]
[1771389450373,3.75700836,85.131,85.091,3.58716475]
[1771389450964,1.98207583,85.14,85.091,3.58716475]
[1771389451479,3.75700836,85.139,85.091,3.58716475]
[1771389452773,10.577,85.137,85.091,3.58716475]
[1771389453674,14.33400836,85.137,85.091,3.58716475]
[1771389454172,3.75700836,85.136,85.091,3.58716475]
[1771389454475,3.75700836,85.129,85.091,3.58716475]
[1771389454674,3.75700836,85.129,85.08,3.58716475]
[1771389454868,3.75700836,85.129,85.081,3.58716475]
[1771389455376,3.75700836,85.129,85.091,3.58716475]
[1771389455970,1.98207583,85.14,85.091,3.58716475]
[1771389456172,3.75700836,85.141,85.091,3.58716475]
[1771389456370,3.75700836,85.139,85.091,3.58716475]
[1771389458478,1.98207583,85.15,85.101,3.58716475]
[1771389459167,3.75700836,85.154,85.11,1.98207583]
[1771389459479,3.75700836,85.154,85.111,3.58716475]
[1771389460076,179.74731765,85.159,85.111,3.58716475]
[1771389460573,3.75700836,85.158,85.111,3.58716475]
[1771389460772,1.98207583,85.15,85.111,3.58716475]
[1771389461867,1.98718826,85.15,85.111,3.58716475]
[1771389467682,3.75700836,85.158,85.111,3.58716475]
[1771389468277,3.75700836,85.158,85.103,10.5812]
[1771389468278,1.98718826,85.14,85.103,14.23091]
[1771389468579,5.74191638,85.14,85.104,3.64971]
[1771389470381,73.88,85.147,85.107,3.64971]
[1771389471679,73.88,85.147,85.109,3.64971]
[1771389471985,73.88,85.147,85.11,1.98718826]
[1771389472188,73.88,85.147,85.111,3.64971]
[1771389472982,3.75472812,85.157,85.111,3.64971]
[1771389473190,1.98718826,85.15,85.111,3.64971]
[1771389475584,3.80198501,85.139,85.091,3.72500221]
[1771389475783,1.98718826,85.13,85.091,3.72500221]
[1771389476582,1.98718826,85.13,85.093,3.72500221]
[1771389476782,379.00462208,85.26,85.093,3.72500221]
[1771389476984,3.80198501,85.169,85.12,3.72500221]
[1771389479691,1.98718826,85.16,85.12,3.72500221]
[1771389480592,3.80198501,85.169,85.125,3.72500221]
[1771389480988,73.88,85.171,85.125,3.72500221]
[1771389481792,73.88,85.171,85.128,3.72500221]
[1771389483897,3.80198501,85.179,85.128,3.72500221]
[1771389484097,73.88,85.178,85.134,3.72500221]
[1771389484296,77.68198501,85.178,85.134,3.72500221]
[1771389484600,1.98718826,85.17,85.134,3.72500221]
[1771389485999,73.88,85.177,85.134,3.72500221]
[1771389488302,77.68198501,85.177,85.134,3.72500221]
[1771389488801,3.80198501,85.176,85.134,3.72500221]
[1771389490404,1.98718826,85.17,85.134,3.72500221]
[1771389491408,3.80198501,85.176,85.138,10.5768]
[1771389491705,10.9900236,85.228,85.107,73.88]
[1771389491706,73.88,85.182,85.139,3.72500221]
[1771389492303,1.98718826,85.18,85.141,10.5764]
[1771389492611,1.98718826,85.16,85.125,3.72500221]
[1771389493003,3.80198501,85.169,85.129,10.5779]
[1771389494617,3.80198501,85.169,85.129,14.21927733]
[1771389494816,3.80198501,85.169,85.133,10.5775]
[1771389501922,3.80198501,85.169,85.133,14.21887733]
[1771389502220,3.80198501,85.169,85.134,3.64137733]
[1771389515936,3.67676768,85.159,85.124,3.64137733]
[1771389517230,3.67676768,85.159,85.126,3.64137733]
[1771389528538,3.86583457,85.169,85.129,3.90942473]
[1771389539244,3.68308389,85.179,85.134,3.81199762]
[1771389539742,5.6696503,85.17,85.134,3.81199762]
[1771389540141,3.68308389,85.169,85.134,3.81199762]
[1771389541843,3.68308389,85.185,85.138,3.81199762]
[1771389542538,3.68308389,85.185,85.141,3.81199762]
[1771389543648,3.68308389,85.185,85.146,10.5758]
[1771389543841,3.68308389,85.185,85.147,3.81199762]
[1771389544440,3.68308389,85.195,85.155,3.81199762]
[1771389545447,1.98656641,85.19,85.155,3.81199762]
[1771389545747,1.98656641,85.19,85.158,3.81199762]
[1771389550539,1.98656641,85.19,85.16,3.81199762]
[1771389550743,10.9127002,85.234,85.134,433.27528663]
[1771389550744,3.68308389,85.169,85.134,433.27528663]
[1771389550940,3.68308389,85.159,85.134,433.27528663]
[1771389551749,3.68308389,85.159,85.126,10.5783]
[1771389552949,3.68308389,85.159,85.126,14.39029762]
[1771389553756,3.68308389,85.159,85.089,29.26509746]
[1771389553757,3.68308389,85.149,85.117,10.5794]
[1771389554453,3.68308389,85.149,85.117,14.39139762]
[1771389557256,1.98656641,85.14,85.104,3.67014083]
[1771389559454,3.65446625,85.139,85.104,3.67014083]
[1771389562750,3.65446625,85.139,85.105,3.67014083]
[1771389569362,3.65446625,85.139,85.1,3.67014083]
[1771389570861,1.98656641,85.14,85.101,3.67014083]
[1771389571363,1.98656641,85.14,85.105,3.67014083]
[1771389572666,5.64103266,85.14,85.105,3.67014083]
[1771389572862,3.65446625,85.139,85.105,3.67014083]
[1771389573063,3.65446625,85.139,85.104,10.581]
[1771389573456,3.65446625,85.119,85.085,3.67014083]
[1771389590889,1.98846537,85.12,85.086,3.86764287]
[1771389591077,1.98846537,85.13,85.086,3.86764287]
[1771389591479,1.98846537,85.14,85.096,3.86764287]
[1771389591682,3.64295494,85.148,85.098,3.86764287]
[1771389594187,1.98846537,85.14,85.098,3.86764287]
[1771389600790,3.89447422,85.158,85.103,3.86284776]
[1771389601091,3.89447422,85.158,85.111,3.86284776]
[1771389601486,1.98846537,85.15,85.116,3.86284776]
[1771389601690,3.89447422,85.149,85.116,3.86284776]
[1771389609600,3.89447422,85.159,85.116,3.86284776]
[1771389619403,3.89447422,85.159,85.119,3.86178645]
[1771389631714,3.59994622,85.149,85.108,10.5805]
[1771389631913,3.59994622,85.139,85.108,10.5805]
[1771389633215,3.59994622,85.158,85.114,3.86178645]
[1771389633919,3.59994622,85.149,85.114,3.86178645]
[1771389637427,3.59994622,85.139,85.106,10.5807]
[1771389637722,3.59994622,85.139,85.104,3.86178645]
[1771389638512,3.59994622,85.139,85.097,10.5819]
[1771389639617,3.59994622,85.139,85.098,3.86178645]
[1771389654342,3.59994622,85.139,85.1,10.5815]
[1771389654643,3.59994622,85.139,85.101,3.60327487]
[1771389658946,5.60272258,85.13,85.101,3.60327487]
[1771389660948,3.61475493,85.129,85.101,3.60327487]
[1771389664347,3.61475493,85.129,85.092,3.60327487]
[1771389664546,3.61475493,85.119,85.08,10.5839]
[1771389664747,3.61475493,85.119,85.081,3.60327487]
[1771389664946,3.61475493,85.109,85.081,3.60327487]
[1771389666647,3.61475493,85.109,85.079,427.10823924]
[1771389666954,3.61475493,85.099,85.072,3.60327487]
[1771389669354,3.61475493,85.089,85.059,3.60327487]
[1771389669657,3.61475493,85.089,85.049,3.60327487]
[1771389670451,1.98796765,85.08,85.049,3.60327487]
[1771389670852,1.98796765,85.1,85.049,3.60327487]
[1771389671152,1.98796765,85.1,85.051,3.60327487]
[1771389671552,3.61475493,85.109,85.051,3.60327487]
[1771389671749,3.61475493,85.109,85.061,3.60327487]
[1771389680464,3.82155373,85.122,85.065,3.75571759]
[1771389680661,10.5788,85.123,85.065,3.75571759]
[1771389680662,3.82155373,85.119,85.065,3.75571759]
[1771389681866,3.82155373,85.119,85.067,3.75571759]
[1771389682569,1.98796765,85.11,85.069,3.75571759]
[1771389683167,3.82155373,85.109,85.069,3.75571759]
[1771389684859,3.82155373,85.109,85.071,3.75571759]
[1771389694373,3.82155373,85.109,85.073,3.75571759]
[1771389708189,1.98796765,85.11,85.073,3.75571759]
[1771389709885,1.98901485,85.11,85.073,3.75571759]
[1771389714291,5.69580894,85.11,85.073,3.75571759]
[1771389715995,3.70679409,85.109,85.073,3.75571759]
[1771389717998,3.70679409,85.109,85.06,23.93772826]
[1771389717999,3.70679409,85.109,85.069,10.5854]
[1771389720193,3.70679409,85.109,85.069,14.34142293]
[1771389720600,1.98901485,85.09,85.058,3.75602293]
[1771389720898,3.70679409,85.089,85.058,3.75602293]
[1771389732299,3.70679409,85.107,85.058,3.75602293]
[1771389732496,3.70679409,85.099,85.058,3.75602293]
[1771389733402,1.98901485,85.09,85.058,3.75602293]
[1771389734208,3.70679409,85.099,85.058,3.75602293]
[1771389738003,1.98901485,85.1,85.058,3.75602293]